Cogmind - Beta 14 @@@ ROGUE MODE // 2024.11.19 @ 20:05:40 Player: Shimmyarah Result: Destroyed by G-73 Enforcer with Heavy Laser Performance ------------- Evolutions (8) 4000 Regions Visited (15) 3000 Robots Destroyed (38) 190 Value Destroyed (626) 626 Prototype IDs (13) 260 Alien Tech Used (0) 0 Bonus (1500) 1500 TOTAL SCORE: 9576 Bonus ------- Entered Garrisons 200 Entered DSFs 1000 Aligned with FarCom 300 Cogmind --------- Core Integrity 0/1450 Matter 182/300 Energy 99/100 System Corruption 19% Temperature Cool (9) Movement Core (50) Location -2/Research Parts ------- > --- POWER (1) -------- (None) > --- PROPULSION (10) -- Impulse Thruster Array Cooled Q-thruster > --- UTILITY (9) ------ Hacking Suite System Shield System Shield System Shield > --- WEAPON (3) ------- (None) > --- INVENTORY (5) ---- Triangulator ECM Suite Advanced Force Field Plasma Sword Plasma Sword Peak State ------------ > --- POWER ------------ (None) > --- PROPULSION ------- Armored Medium Treads Armored Medium Treads Advanced Medium Treads Biometal Medium Treads Biometal Medium Treads Biometal Leg Enhanced Biometal Leg Q-thruster > --- UTILITY ---------- Enhanced Optical Array Advanced Terrain Scan Processor Hacking Suite Hacking Suite System Shield System Shield System Shield Improved System Guard Improved System Guard > --- WEAPON ----------- Plasma Sword > --- INVENTORY -------- Triangulator ECM Suite Advanced Force Field Plasma Sword Plasma Sword [Rating: 107] Favorites ----------- Power Improved Ion Engine Engine Improved Ion Engine Power Core Light Nuclear Core Propulsion Light Treads Treads Light Treads Leg Biometal Leg Wheel Wheel Hover Unit Improved Gravmag System Flight Unit Xenon Bombardment Thruster Utility System Shield Device Seismic Detector Storage Large Storage Unit Processor Advanced Terrain Scan Processor Hackware System Shield Protection Light Armor Plating Weapon Heavy Assault Rifle Energy Gun Heavy EM Pulse Gun Energy Cannon Firepult Ballistic Gun Heavy Assault Rifle Launcher Advanced EMP Blaster Special Weapon Mining Laser Slashing Weapon Plasma Sword Build | -11 -10 -9 -9 -9 -8 -8 -7 -6 -6 -5 -4 -4 -4 -3 -2 ------- Run | Yrd Mat Mat Min Exi Min Mat Fac Fac DSF Fac Fac DSF Gar Res Res Slots Evolved 16 | . . 2 . . . 2 2 2 . 2 2 . . 2 2 Power . | . . . . . . . . . . . . . . . . Propulsion 8 | . . 2 . . . . 1 2 . 1 2 . . . . Utility 7 | . . . . . . 1 1 . . 1 . . . 2 2 Weapon 1 | . . . . . . 1 . . . . . . . . . Parts Attached 122 | 1 3 15 . 2 4 38 13 3 9 5 . . . 14 15 Power 7 | . . 1 . . . 3 1 1 1 . . . . . . Engine 4 | . . 1 . . . 3 . . . . . . . . . Core 3 | . . . . . . . 1 1 1 . . . . . . Reactor . | . . . . . . . . . . . . . . . . Propulsion 55 | . 2 5 . . . 11 7 . 7 4 . . . 9 10 Treads 14 | . . 4 . . . 2 . . . 1 . . . 6 1 Leg 4 | . . 1 . . . . . . . . . . . 1 2 Wheel 5 | . 2 . . . . 1 . . . . . . . . 2 Hover 12 | . . . . . . . . . 7 2 . . . 1 2 Flight 20 | . . . . . . 8 7 . . 1 . . . 1 3 Utility 35 | 1 . 3 . 1 2 12 5 2 1 1 . . . 2 5 Device 17 | 1 . 1 . 1 1 8 3 . . . . . . . 2 Storage 1 | . . 1 . . . . . . . . . . . . . Processor 7 | . . . . . . 2 1 1 1 . . . . . 2 Hackware 7 | . . . . . . 1 1 1 . 1 . . . 2 1 Protection 3 | . . 1 . . 1 1 . . . . . . . . . Artifact . | . . . . . . . . . . . . . . . . Weapon 25 | . 1 6 . 1 2 12 . . . . . . . 3 . Energy Gun 13 | . . 4 . . . 9 . . . . . . . . . Energy Cannon 1 | . . . . 1 . . . . . . . . . . . Ballistic Gun 6 | . . 2 . . 2 2 . . . . . . . . . Ballistic Cannon . | . . . . . . . . . . . . . . . . Launcher 2 | . . . . . . 1 . . . . . . . 1 . Special Weapon 1 | . 1 . . . . . . . . . . . . . . Impact Weapon . | . . . . . . . . . . . . . . . . Slashing Weapon 2 | . . . . . . . . . . . . . . 2 . Piercing Weapon . | . . . . . . . . . . . . . . . . Special Melee Weapon . | . . . . . . . . . . . . . . . . Unidentified Prototypes 11 | . . . . 3 . 2 1 . . . . . . 1 4 Parts Lost 41 | . 1 . . . . 1 13 . 5 . . 1 . 2 18 Power 1 | . . . . . . . 1 . . . . . . . . Propulsion 29 | . 1 . . . . 1 7 . 4 . . 1 . 2 13 Utility 7 | . . . . . . . 2 . 1 . . . . . 4 Weapon 4 | . . . . . . . 3 . . . . . . . 1 Highest Loss Streak 9 | . 1 . . . . 1 9 . 5 . . 1 . 2 6 To Critical Strikes 1 | . . . . . . . . . . . . . . 1 . Average Slot Usage (%) 87 | . 99 98 100 90 99 99 87 26 38 60 57 55 52 71 60 Engine 7 | . 14 11 11 11 11 9 . . . . . . . . . Treads 20 | . . 29 33 33 33 17 . . . 4 5 5 5 13 9 Wheel 7 | . 24 11 11 11 11 6 . . . . . . . . 1 Hover 2 | . . . . . . . . . 13 21 21 19 15 11 . Flight 5 | . . . . . . 12 33 . . 3 5 5 5 5 4 Device 6 | . 14 9 11 8 7 9 9 . . . . . . . . Storage 6 | . 14 11 11 11 11 6 . . . . . . . . . Processor 3 | . . . . . . 2 6 6 7 11 10 10 10 9 9 Hackware 6 | . . . . . . 2 12 20 16 15 15 15 15 22 24 Protection 2 | . . 1 . . 3 5 . . . . . . . . . Energy Gun 5 | . . 13 11 7 . 10 17 . . . . . . . . Ballistic Gun 10 | . 26 6 11 7 21 16 . . . . . . . . . Peak Build Rating 107 | 8 8 13 13 29 13 36 40 15 41 59 59 59 52 99 107 Average Rating 28 | 6 7 11 13 11 12 22 34 13 25 53 59 55 52 82 81 On Entrance 28 | 6 8 7 13 13 8 13 33 10 15 26 59 59 52 52 84 Naked Turns . | . . . . . . . . . . . . . . . . Heaviest Build 50 | 11 11 34 34 50 36 44 18 . . . . . . 6 18 Greatest Support 50 | 20 20 20 10 10 10 24 30 3 50 13 13 13 13 13 30 Greatest Overweight (x) 5 | . 1 3 3 4 3 4 2 . . . . . . 1 5 Average Overweight (x) . | . . . 3 2 3 . . . . . . . . . . Largest Inventory Capacity 15 | 8 8 15 15 15 15 15 5 5 5 5 5 5 5 5 5 Average Capacity 10 | 8 8 8 15 15 15 11 5 5 5 5 5 5 5 5 5 Most Carried 15 | 8 8 8 8 12 10 15 5 5 5 5 5 5 5 5 5 Average Carried 7 | 6 8 7 8 8 8 10 4 3 4 4 5 4 5 4 4 Final Capacity 15 | 8 8 15 15 15 15 5 5 5 5 5 5 5 5 5 5 Final Carried 11 | 8 8 8 8 11 10 5 4 4 5 5 5 5 5 5 5 Class Distribution -------------------- 38% | Scavenger-Mutant 19% | Hacker-Mutant 12% | Mutant 11% | Scavenger-Skirmisher 6% | Sprinter 5% | Wizard-Mutant 3% | Hacker-Sprinter Dominant Class ---------------- Mutant | -10/Materials Mutant | -9/Materials Scavenger-Mutant | -9/Mines Scavenger-Mutant | -9/Exiles Scavenger-Mutant | -8/Mines Scavenger-Skirmisher | -8/Materials Hacker-Sprinter | -7/Factory Hacker-Mutant | -6/Factory Hacker-Mutant | -6/DSF Hacker-Mutant | -5/Factory Hacker-Mutant | -4/Factory Hacker-Mutant | -4/DSF Hacker-Mutant | -4/Garrison Hacker-Mutant | -3/Research Wizard-Mutant | -2/Research Resources | -11 -10 -9 -9 -9 -8 -8 -7 -6 -6 -5 -4 -4 -4 -3 -2 ----------- Run | Yrd Mat Mat Min Exi Min Mat Fac Fac DSF Fac Fac DSF Gar Res Res Matter Collected 1515 | 200 78 116 . 38 165 459 118 116 10 . . 10 . 23 182 Remotely . | . . . . . . . . . . . . . . . . Salvage Created 1078 | 185 38 252 . . 55 459 66 . . . . . . 23 . Parts 98 | 19 3 24 . . 6 40 4 . . . . . . 2 . Haulers Intercepted 1 | . . . . . . 1 . . . . . . . . . Recyclers Shooed 1 | . 1 . . . . . . . . . . . . . . Parts Field Recycled . | . . . . . . . . . . . . . . . . Retrieved Matter . | . . . . . . . . . . . . . . . . Parts Self-Destructed . | . . . . . . . . . . . . . . . . Prevented . | . . . . . . . . . . . . . . . . Kills | -11 -10 -9 -9 -9 -8 -8 -7 -6 -6 -5 -4 -4 -4 -3 -2 ------- Run | Yrd Mat Mat Min Exi Min Mat Fac Fac DSF Fac Fac DSF Gar Res Res Combat Hostiles Destroyed 15 | . 3 3 . . 2 7 . . . . . . . . . Guns 15 | . 3 3 . . 2 7 . . . . . . . . . Classes Destroyed 9 | 2 1 3 . . . 3 . . . . . . . . . Worker 7 | . . 2 . . 1 1 2 . . . . . . 1 . Builder 2 | . . . . . . 2 . . . . . . . . . Tunneler 5 | 4 . . . . . 1 . . . . . . . . . Hauler 1 | . . . . . . 1 . . . . . . . . . Recycler 1 | 1 . . . . . . . . . . . . . . . Watcher 7 | . . 2 . . . 4 1 . . . . . . . . Swarmer 8 | . 3 . . . 2 3 . . . . . . . . . Grunt 2 | . . . . . . 2 . . . . . . . . . Sentry 5 | . . 3 . . . 2 . . . . . . . . . Best Kill Streak 4 | 3 3 3 . . 3 4 2 . . . . . . 1 . Combat Bots Only 3 | . 3 1 . . 2 3 . . . . . . . . . Max Kills in Single Turn 2 | 1 1 1 . . 1 2 1 . . . . . . 1 . Gunslinging . | . . . . . . . . . . . . . . . . Exploded . | . . . . . . . . . . . . . . . . Melee . | . . . . . . . . . . . . . . . . Uniques/NPCs Destroyed . | . . . . . . . . . . . . . . . . Combat | -11 -10 -9 -9 -9 -8 -8 -7 -6 -6 -5 -4 -4 -4 -3 -2 -------- Run | Yrd Mat Mat Min Exi Min Mat Fac Fac DSF Fac Fac DSF Gar Res Res Hostile Shots Fired 685 | . 53 19 . . 17 51 36 . 20 . . 2 6 117 364 Missed 271 | . 14 5 . . 8 24 15 . 6 . . 1 2 47 149 Damage Taken 9016 | . 335 234 . . 91 379 725 . 548 . . 75 80 1490 5059 Core 2465 | . 110 24 . . 6 14 324 . 339 . . . 23 165 1460 Absorbed by Shields . | . . . . . . . . . . . . . . . . Core Remaining (%) 82 | 100 56 . . . 92 97 53 . 60 100 . . 98 87 . Volleys Fired 110 | 17 24 18 . . 6 34 10 . . . . . . 1 . Largest 3 | 2 2 2 . . 2 3 3 . . . . . . 1 . Hottest 135 | 40 100 85 . . 46 135 135 . . . . . . 36 . Shots Fired 257 | 34 47 36 . . 12 102 25 . . . . . . 1 . Gun 255 | 34 46 36 . . 12 102 25 . . . . . . . . Cannon . | . . . . . . . . . . . . . . . . Launcher 1 | . . . . . . . . . . . . . . 1 . Special 1 | . 1 . . . . . . . . . . . . . . Kinetic 203 | 34 46 15 . . 12 96 . . . . . . . . . Thermal 13 | . 1 12 . . . . . . . . . . . . . Explosive . | . . . . . . . . . . . . . . . . Electromagnetic 41 | . . 9 . . . 6 25 . . . . . . 1 . Robot Hit Streak 7 | 7 4 4 . . 2 6 4 . . . . . . . . Robot Miss Streak 10 | 3 5 5 . . 5 10 7 . . . . . . . . Penetration Max . | . . . . . . . . . . . . . . . . Secondary Targets 1 | . . . . . 1 . . . . . . . . . . Max Gunslinging Chain 1 | . . . . . 1 . . . . . . . . . . Shots Hit Robots 112 | 20 17 16 . . 6 46 7 . . . . . . . . Core Hits 58 | 8 5 11 . . 3 24 3 . . . . . . 3 1 Critical Kills 1 | . . . . . . 1 . . . . . . . . . Critical Parts Destroyed . | . . . . . . . . . . . . . . . . Critical Strikes 1 | . . . . . . 1 . . . . . . . . . Destroy 1 | . . . . . . 1 . . . . . . . . . Melee Attacks . | . . . . . . . . . . . . . . . . Impact . | . . . . . . . . . . . . . . . . Slashing . | . . . . . . . . . . . . . . . . Piercing . | . . . . . . . . . . . . . . . . Sneak Attacks . | . . . . . . . . . . . . . . . . Combat Hostiles . | . . . . . . . . . . . . . . . . Follow-up Attacks . | . . . . . . . . . . . . . . . . Damage Inflicted 1716 | 156 146 197 . . 141 827 154 . . . . . . 49 46 Guns 1561 | 156 138 197 . . 97 826 147 . . . . . . . . Cannons . | . . . . . . . . . . . . . . . . Explosions . | . . . . . . . . . . . . . . . . Melee . | . . . . . . . . . . . . . . . . Ramming 155 | . 8 . . . 44 1 7 . . . . . . 49 46 Kinetic 1241 | 156 138 71 . . 97 779 . . . . . . . . . Thermal 57 | . . 57 . . . . . . . . . . . . . Explosive . | . . . . . . . . . . . . . . . . Electromagnetic 263 | . . 69 . . . 47 147 . . . . . . . . Impact . | . . . . . . . . . . . . . . . . Slashing . | . . . . . . . . . . . . . . . . Piercing . | . . . . . . . . . . . . . . . . Highest Corruption 19 | . . . . . . 1 . . . . . . . 1 19 Average Corruption 1 | . . . . . . 1 . . . . . . . 1 7 Corruption Purged . | . . . . . . . . . . . . . . . . Corruption Blocked . | . . . . . . . . . . . . . . . . Effects 8 | . . . . . . 2 . . . . . . . 1 5 Message Errors 4 | . . . . . . 2 . . . . . . . 1 1 Matter Fused 1 | . . . . . . . . . . . . . . . 1 Heat Flow Errors 1 | . . . . . . . . . . . . . . . 1 Data Loss (major) 1 | . . . . . . . . . . . . . . . 1 Misdirections 1 | . . . . . . . . . . . . . . . 1 Overload Shots . | . . . . . . . . . . . . . . . . Overflow Damage . | . . . . . . . . . . . . . . . . Projectiles . | . . . . . . . . . . . . . . . . Explosions . | . . . . . . . . . . . . . . . . Melee . | . . . . . . . . . . . . . . . . Knockbacks 2 | . . . . . . . . . . . . . . 1 1 Impact 2 | . . . . . . . . . . . . . . 1 1 Kinetic . | . . . . . . . . . . . . . . . . Secondary . | . . . . . . . . . . . . . . . . Self-Inflicted Damage 86 | . 3 . . . 21 . 3 . . . . . . 39 20 Shots 1 | . . . . . . . . . . . . . . 1 . Rammed 36 | . 3 . 1 . 3 1 4 . . . . . . 13 11 Targets Rammed 36 | . 3 . 1 . 3 1 4 . . . . . . 13 11 Kicked . | . . . . . . . . . . . . . . . . Crushed . | . . . . . . . . . . . . . . . . Highest Temperature 421 | . 20 86 . . 16 231 421 . . . . . . 18 176 Average Temperature 66 | . 12 30 . . 7 31 127 . . . . . . 18 102 Received Heat Transfer 622 | . 48 81 . . . 90 36 . . . . . . 115 252 Effects 4 | . . . . . . . 4 . . . . . . . . Damage (major) 4 | . . . . . . . 4 . . . . . . . . Siege Activations . | . . . . . . . . . . . . . . . . Robots Corrupted . | . . . . . . . . . . . . . . . . Combat Hostiles . | . . . . . . . . . . . . . . . . Parts Fried 3 | . . . . . . . 3 . . . . . . . . Impact Corruptions 1 | . . . . . 1 . . . . . . . . . . Robots Melted . | . . . . . . . . . . . . . . . . Combat Hostiles . | . . . . . . . . . . . . . . . . Parts Melted . | . . . . . . . . . . . . . . . . Heat Transferred 148 | . . 148 . . . . . . . . . . . . . Parts Sabotaged . | . . . . . . . . . . . . . . . . Parts Stolen . | . . . . . . . . . . . . . . . . Parts Stripped . | . . . . . . . . . . . . . . . . Power Chain Reactions . | . . . . . . . . . . . . . . . . Alert | -11 -10 -9 -9 -9 -8 -8 -7 -6 -6 -5 -4 -4 -4 -3 -2 ------- Run | Yrd Mat Mat Min Exi Min Mat Fac Fac DSF Fac Fac DSF Gar Res Res Peak Influence 611 | 25 128 189 . . 45 306 243 48 36 22 10 7 29 464 611 Initial 261 | . 16 49 . . . . 145 . 36 2 10 7 . 15 261 Average 106 | 13 67 114 . . 7 126 191 27 20 7 10 3 12 203 367 Maximum Alert Level 2 | . . . . . . 1 1 . . . . . . 2 2 Low Security (%) 77 | 100 100 100 100 . 100 72 44 100 100 100 100 100 100 59 . Level 1 18 | . . . . . . 27 55 . . . . . . 30 63 Level 2 4 | . . . . . . . . . . . . . . 10 36 Level 3 . | . . . . . . . . . . . . . . . . Level 4 . | . . . . . . . . . . . . . . . . Level 5 . | . . . . . . . . . . . . . . . . High Security . | . . . . . . . . . . . . . . . . Max Security . | . . . . . . . . . . . . . . . . Squads Dispatched 16 | . 2 1 . . . 3 2 . 1 1 . . . 2 4 Investigation 5 | . 2 . . . . 1 . . . . . . . 1 1 Extermination 3 | . . . . . . . 1 . . 1 . . . 1 . Reinforcement 7 | . . 1 . . . 1 1 . 1 . . . . . 3 Assault . | . . . . . . . . . . . . . . . . Garrison 1 | . . . . . . 1 . . . . . . . . . Intercept . | . . . . . . . . . . . . . . . . Searches Triggered 1 | . . . . . . . . . . . . . . . 1 Construction Impeded 1 | . . . . . . . . . . . . . . . 1 Haulers Reinforced . | . . . . . . . . . . . . . . . . Active Scanning Responses . | . . . . . . . . . . . . . . . . Cargo Convoy Interrupts . | . . . . . . . . . . . . . . . . Stealth | -11 -10 -9 -9 -9 -8 -8 -7 -6 -6 -5 -4 -4 -4 -3 -2 --------- Run | Yrd Mat Mat Min Exi Min Mat Fac Fac DSF Fac Fac DSF Gar Res Res Distress Signals 5 | . . 1 . . . 1 . . . . . . . 1 2 Communications Jammed . | . . . . . . . . . . . . . . . . Distress Signals . | . . . . . . . . . . . . . . . . Times Spotted 164 | . 9 12 3 . 3 28 7 . 4 1 . 1 3 31 62 Peak Tracking Total 18 | . 6 5 5 . 3 7 4 . 3 2 . 2 3 8 18 Tactical Retreats 33 | . 1 . 1 . . 4 1 . 1 . . . . 10 15 Traps | -11 -10 -9 -9 -9 -8 -8 -7 -6 -6 -5 -4 -4 -4 -3 -2 ------- Run | Yrd Mat Mat Min Exi Min Mat Fac Fac DSF Fac Fac DSF Gar Res Res Traps Triggered 10 | . 1 . . . . 3 . . 1 2 . . . 1 2 Indirectly . | . . . . . . . . . . . . . . . . Trap Hack Attempts . | . . . . . . . . . . . . . . . . Triggered . | . . . . . . . . . . . . . . . . Disarmed . | . . . . . . . . . . . . . . . . Reprogrammed 6 | . . . . . . 6 . . . . . . . . . Reused 1 | . . . . . . 1 . . . . . . . . . Traps Extracted . | . . . . . . . . . . . . . . . . Installed . | . . . . . . . . . . . . . . . . Triggered 1 | . . . . . . 1 . . . . . . . . . Machines | -11 -10 -9 -9 -9 -8 -8 -7 -6 -6 -5 -4 -4 -4 -3 -2 ---------- Run | Yrd Mat Mat Min Exi Min Mat Fac Fac DSF Fac Fac DSF Gar Res Res Machines Disabled 1 | . . 1 . . . . . . . . . . . . . Max in Single Turn 1 | . . 1 . . . . . . . . . . . . . Machines Repaired . | . . . . . . . . . . . . . . . . Machines Dismantled . | . . . . . . . . . . . . . . . . Machines Sabotaged . | . . . . . . . . . . . . . . . . Overloaded Fab Kills . | . . . . . . . . . . . . . . . . Hacking | -11 -10 -9 -9 -9 -8 -8 -7 -6 -6 -5 -4 -4 -4 -3 -2 --------- Run | Yrd Mat Mat Min Exi Min Mat Fac Fac DSF Fac Fac DSF Gar Res Res Machines Accessed 34 | . 3 3 . 4 . 3 3 3 . 6 1 . 1 6 1 Terminals 29 | . 3 3 . . . 3 2 3 . 6 1 . 1 6 1 Fabricators . | . . . . . . . . . . . . . . . . Repair Stations 1 | . . . . . . . 1 . . . . . . . . Recycling Units . | . . . . . . . . . . . . . . . . Scanalyzers . | . . . . . . . . . . . . . . . . Garrison Access . | . . . . . . . . . . . . . . . . Total Hacks 147 | . 17 8 . 49 . 8 5 9 . 23 4 . 2 19 3 Successful 85 | . 8 3 . 49 . 3 1 7 . 4 1 . 1 7 1 Failed 62 | . 9 5 . . . 5 4 2 . 19 3 . 1 12 2 Catastrophic 16 | . 1 1 . . . 1 1 1 . 6 . . . 5 . Database Lockouts . | . . . . . . . . . . . . . . . . Manual 45 | . 14 1 . 1 . 2 3 5 . 13 . . . 3 3 Terminals 97 | . 17 8 . . . 8 4 9 . 23 4 . 2 19 3 Fabricators . | . . . . . . . . . . . . . . . . Repair Stations 1 | . . . . . . . 1 . . . . . . . . Recycling Units . | . . . . . . . . . . . . . . . . Scanalyzers . | . . . . . . . . . . . . . . . . Garrison Access . | . . . . . . . . . . . . . . . . Terminal Hacks 76 | . 3 3 . 49 . 3 . 4 . 4 1 . 1 7 1 Record 58 | . . . . 49 . . . 2 . 1 . . . 5 1 Part Schematic 1 | . 1 . . . . . . . . . . . . . . Prototype ID Bank 1 | . . . . . . . . . . 1 . . . . . Open DSF 5 | . . . . . . . . 1 . 1 1 . . 2 . Emergency Access Points 2 | . . . . . . 1 . . . . . . 1 . . Terminal Index 2 | . 1 1 . . . . . . . . . . . . . Unreport Threat 1 | . . 1 . . . . . . . . . . . . . Reprogram Traps 1 | . . . . . . 1 . . . . . . . . . Dispatch Records 1 | . . . . . . . . . . 1 . . . . . Transport Status 1 | . . . . . . 1 . . . . . . . . . Hauler Manifests 2 | . 1 1 . . . . . . . . . . . . . Zone Layout 1 | . . . . . . . . 1 . . . . . . . Fabricator Hacks . | . . . . . . . . . . . . . . . . Repair Station Hacks . | . . . . . . . . . . . . . . . . Recycling Unit Hacks . | . . . . . . . . . . . . . . . . Scanalyzer . | . . . . . . . . . . . . . . . . Garrison Access Hacks . | . . . . . . . . . . . . . . . . Unauthorized Hacks 9 | . 5 . . . . . 1 3 . . . . . . . Terminals 9 | . 5 . . . . . 1 3 . . . . . . . Track 1 | . 1 . . . . . . . . . . . . . . Assimilate 1 | . . . . . . . 1 . . . . . . . . Botnet 3 | . 2 . . . . . . 1 . . . . . . . Operators 2 | . 1 . . . . . . 1 . . . . . . . Skim 2 | . 1 . . . . . . 1 . . . . . . . Fabricators . | . . . . . . . . . . . . . . . . Repair Stations . | . . . . . . . . . . . . . . . . Recycling Units . | . . . . . . . . . . . . . . . . Scanalyzers . | . . . . . . . . . . . . . . . . Garrison Access . | . . . . . . . . . . . . . . . . Data Cores Recovered . | . . . . . . . . . . . . . . . . Used . | . . . . . . . . . . . . . . . . Hacking Detections 22 | . 3 3 . . . 2 3 1 . 6 . . . 4 . Full Trace Events 1 | . 1 . . . . . . . . . . . . . . Feedback Events . | . . . . . . . . . . . . . . . . Feedback Blocked . | . . . . . . . . . . . . . . . . Robot Schematics Acquired . | . . . . . . . . . . . . . . . . Robots Built . | . . . . . . . . . . . . . . . . Authchips . | . . . . . . . . . . . . . . . . Time . | . . . . . . . . . . . . . . . . Total Robot Build Rating . | . . . . . . . . . . . . . . . . Part Schematics Acquired 1 | . 1 . . . . . . . . . . . . . . Parts Built . | . . . . . . . . . . . . . . . . Authchips . | . . . . . . . . . . . . . . . . Time . | . . . . . . . . . . . . . . . . Total Part Build Rating . | . . . . . . . . . . . . . . . . Parts Repaired . | . . . . . . . . . . . . . . . . Time . | . . . . . . . . . . . . . . . . Parts Recycled . | . . . . . . . . . . . . . . . . Recycled Matter . | . . . . . . . . . . . . . . . . Retrieved Matter . | . . . . . . . . . . . . . . . . Retrieved Components . | . . . . . . . . . . . . . . . . Parts Scanalyzed . | . . . . . . . . . . . . . . . . Part Schematics Acquired . | . . . . . . . . . . . . . . . . Parts Damaged . | . . . . . . . . . . . . . . . . Bothacking | -11 -10 -9 -9 -9 -8 -8 -7 -6 -6 -5 -4 -4 -4 -3 -2 ------------ Run | Yrd Mat Mat Min Exi Min Mat Fac Fac DSF Fac Fac DSF Gar Res Res Used RIF Installer . | . . . . . . . . . . . . . . . . Robots Hacked . | . . . . . . . . . . . . . . . . Non-combat . | . . . . . . . . . . . . . . . . Combat . | . . . . . . . . . . . . . . . . Robot Hacks Applied . | . . . . . . . . . . . . . . . . Relay Couplers Released . | . . . . . . . . . . . . . . . . Fabnet Peak Effective % . | . . . . . . . . . . . . . . . . Robots Rewired . | . . . . . . . . . . . . . . . . Allies Hacked . | . . . . . . . . . . . . . . . . Hacks Repelled . | . . . . . . . . . . . . . . . . Allies | -11 -10 -9 -9 -9 -8 -8 -7 -6 -6 -5 -4 -4 -4 -3 -2 -------- Run | Yrd Mat Mat Min Exi Min Mat Fac Fac DSF Fac Fac DSF Gar Res Res Total Allies 1 | . . . . . . . 1 . . . . . . . . Largest Group 1 | . . . . . . . 1 . . . . . . . . Highest-Rated Group 10 | . . . . . . . 10 . . . . . . . . Highest-Rated Ally 10 | . . . . . . . 10 . . . . . . . . Total Orders 1 | . . . . . . . 1 . . . . . . . . STAY 1 | . . . . . . . 1 . . . . . . . . Ally Attacks . | . . . . . . . . . . . . . . . . Total Damage . | . . . . . . . . . . . . . . . . Kills . | . . . . . . . . . . . . . . . . Allies Corrupted . | . . . . . . . . . . . . . . . . Allies Melted . | . . . . . . . . . . . . . . . . Intel | -11 -10 -9 -9 -9 -8 -8 -7 -6 -6 -5 -4 -4 -4 -3 -2 ------- Run | Yrd Mat Mat Min Exi Min Mat Fac Fac DSF Fac Fac DSF Gar Res Res Robot Analysis Total . | . . . . . . . . . . . . . . . . Derelict Logs Recovered . | . . . . . . . . . . . . . . . . Drone Launches . | . . . . . . . . . . . . . . . . Drone Recoveries . | . . . . . . . . . . . . . . . . Exploration | -11 -10 -9 -9 -9 -8 -8 -7 -6 -6 -5 -4 -4 -4 -3 -2 ------------- Run | Yrd Mat Mat Min Exi Min Mat Fac Fac DSF Fac Fac DSF Gar Res Res Turns Passed 6301 | 115 211 425 144 903 1420 1150 442 54 87 353 33 25 46 398 495 Spaces Moved 6646 | 55 166 296 115 743 425 1301 1014 96 134 603 55 37 86 652 868 Core 2221 | . . . . . . . 19 96 117 471 . . 57 616 845 Treads 146 | . . 70 . . . 76 . . . . . . . . . Legs 85 | 55 16 . . . . . . . . . . . . . 14 Wheels 1957 | . 150 226 115 743 425 298 . . . . . . . . . Hover 24 | . . . . . . . . . 17 . . . . 7 . Flight 2213 | . . . . . . 927 995 . . 132 55 37 29 29 9 Fastest Speed 28 | 120 80 80 125 110 125 31 28 50 44 50 60 60 50 50 35 Average Speed 69 | 120 84 112 125 120 125 65 31 50 50 52 60 60 53 52 52 Slowest Speed 300 | 120 120 160 125 140 125 225 150 50 80 60 60 60 60 170 300 Overloaded Moves 22 | . . . . . . . 22 . . . . . . . . Propulsion Burnouts . | . . . . . . . . . . . . . . . . Robots Hopped 43 | . . . . . . 20 5 . . 10 . . . 4 4 Cave-ins Triggered . | . . . . . . . . . . . . . . . . Time Travels 1 | . . . . 1 . . . . . . . . . . . Exploration Rate (%) 36 | 4 28 29 28 93 80 56 22 3 96 20 2 43 20 24 29 Regions Visited 15 Branch Regions 3 Pre-discovered Areas 1 | . . . . 1 . . . . . . . . . . . Known Exits Taken 2 | . . . . . . . . 1 . . 1 . . . . Unknown Exits Taken 10 | 1 1 1 1 1 1 1 1 . . 1 . . . 1 . Scrap Searched 1 | . . . . . 1 . . . . . . . . . . Spaces Dug 1 | . 1 . . . . . . . . . . . . . . Terrain Destroyed 1 | . 1 . . . . . . . . . . . . . . Melee . | . . . . . . . . . . . . . . . . Projectile 1 | . 1 . . . . . . . . . . . . . . AOE . | . . . . . . . . . . . . . . . . Terrain Rammed . | . . . . . . . . . . . . . . . . Walls Destroyed . | . . . . . . . . . . . . . . . . Machines Disabled . | . . . . . . . . . . . . . . . . Actions | -11 -10 -9 -9 -9 -8 -8 -7 -6 -6 -5 -4 -4 -4 -3 -2 --------- Run | Yrd Mat Mat Min Exi Min Mat Fac Fac DSF Fac Fac DSF Gar Res Res Total 8095 | 76 197 355 115 752 1301 1521 1118 101 148 629 54 40 85 702 901 Wait 1042 | . . 5 . . 862 94 69 . 4 . . . . . 8 Move 6550 | 54 165 295 114 742 424 1262 1004 95 133 583 54 36 85 644 860 Hop 39 | . . . . . . 18 5 . . 9 . . . 3 4 Pick Up 71 | 3 1 10 . 3 2 28 5 2 1 2 . 2 . 12 . Fast Attach 48 | 1 . 1 . . . 9 3 . 9 3 . . . 8 14 Attach 30 | . . 6 . 1 3 5 5 2 . 2 . . . 5 1 Detach 5 | . . . . 2 . . . 1 . . . . . 1 1 Swap 44 | . 3 8 . 1 1 24 5 1 . . . . . 1 . Drop 90 | 1 1 12 . 2 . 46 9 . 1 . . 2 . 14 2 Fire 110 | 17 24 18 . . 6 34 10 . . . . . . 1 . Melee . | . . . . . . . . . . . . . . . . Ram 34 | . 3 . 1 . 3 . 3 . . . . . . 13 11 Kick . | . . . . . . . . . . . . . . . . Crush 1 | . . . . . . 1 . . . . . . . . . Escape Stasis 30 | . . . . . . . . . . 30 . . . . . Rewire 1 | . . . . 1 . . . . . . . . . . . Trap . | . . . . . . . . . . . . . . . . Miscellaneous . | . . . . . . . . . . . . . . . . Route ------- -11/Scrapyard -10/Materials (discovered 2 exits: *Mat / [*Min]) -9/Materials -9/Mines -9/Exiles (discovered 2 exits: [*Min x2]) -8/Mines -8/Materials -7/Factory -6/Factory -6/DSF -5/Factory -4/Factory -4/DSF -4/Garrison -3/Research (discovered 2 exits: *Res / [*Tes]) -2/Research History --------- Turn | Location | Event 22 | -11/Scrapyard | Discovered new exit (range 3) 116 | -11/Scrapyard | Entered Materials 146 | -10/Materials | Discovered new exit (range 7) 320 | -10/Materials | Discovered new exit (range 8) 327 | -10/Materials | Entered another Materials area 327 | -9/Materials | Evolved 2 slots: Propulsion x2 351 | -9/Materials | Build established: Mutant 725 | -9/Materials | Discovered new exit (range 14) 752 | -9/Materials | Entered Mines 851 | -9/Mines | Assembled infested the area 856 | -9/Mines | Assisted by a Guerilla fighting off Assembled 873 | -9/Mines | Build established: Scavenger-Mutant 889 | -9/Mines | Deemed a non-threat by the Exiles lab entrance 890 | -9/Mines | Discovered new exit (range 5) 896 | -9/Mines | Entered Exiles 929 | -9/Exiles | Met 8R-AWN 950 | -9/Exiles | Met EX-HEX 1001 | -9/Exiles | Met EX-DEC 1032 | -9/Exiles | Visited The Gauntlet 1254 | -9/Exiles | Learned location of Zion (-6) 1323 | -9/Exiles | Discovered new exit (range 10) 1466 | -9/Exiles | Met EX-BIN 1498 | -9/Exiles | Aligned with FarCom system 1499 | -9/Exiles | Given EX-Vault access code 1536 | -9/Exiles | Opened EX-Vault 1540 | -9/Exiles | Found Prototype Energy Cannon 1542 | -9/Exiles | Identified Firepult 1545 | -9/Exiles | Found Prototype Device 1546 | -9/Exiles | Identified PSU Rigger 1554 | -9/Exiles | Found Prototype Device 1555 | -9/Exiles | Identified Chronowheel 1555 | -9/Exiles | Activated Chronowheel 1555 | -9/Exiles | Spacetime reconverged on an earlier point 1579 | -9/Exiles | Warned to stay clear of 0b10 Research branches 1778 | -9/Exiles | Discovered new exit (range 15) 1799 | -9/Exiles | Entered Mines 3184 | -8/Mines | Discovered new exit (range 11) 3219 | -8/Mines | Entered Materials 3219 | -8/Materials | Evolved 2 slots: Utility x1, Weapon x1 3526 | -8/Materials | Build established: Scavenger-Skirmisher 3750 | -8/Materials | Garrison activated, responded to threat 4363 | -8/Materials | Discovered new exit (range 8) 4369 | -8/Materials | Entered Factory 4369 | -7/Factory | Evolved 2 slots: Propulsion x1, Utility x1 4403 | -7/Factory | Build established: Sprinter 4707 | -7/Factory | Discovered new exit (range 13) 4763 | -7/Factory | Lost 9 parts (1p4n1u3w) 4811 | -7/Factory | Entered another Factory area 4811 | -6/Factory | Evolved 2 slots: Propulsion x2 4839 | -6/Factory | Lost 4 parts (3n1u) 4865 | -6/Factory | Identified exit to DSF 4865 | -6/Factory | Entered DSF 4902 | -6/DSF | Additional patrols routed to DSF 4910 | -6/DSF | Discovered new exit (range 17) 4952 | -6/DSF | Entered Factory 4952 | -5/Factory | Evolved 2 slots: Propulsion x1, Utility x1 4975 | -5/Factory | Lost 5 parts (4n1u) 5077 | -5/Factory | Build established: Hacker-Mutant 5287 | -5/Factory | Discovered new exit (range 15) 5305 | -5/Factory | Entered another Factory area 5305 | -4/Factory | Evolved 2 slots: Propulsion x2 5320 | -4/Factory | Identified exit to DSF 5338 | -4/Factory | Entered DSF 5346 | -4/DSF | Discovered new exit (range 21) 5363 | -4/DSF | Entered Garrison 5387 | -4/Garrison | Triggered checkpoint 5403 | -4/Garrison | Discovered new exit (range 10) 5409 | -4/Garrison | Entered Research 5409 | -3/Research | Evolved 2 slots: Utility x2 5413 | -3/Research | Identified exit to DSF 5424 | -3/Research | Discovered new exit (range 22) 5451 | -3/Research | Spotted B-86 Titan 5612 | -3/Research | Spotted B-86 Titan 5797 | -3/Research | Discovered new exit (range 21) 5807 | -3/Research | Entered another Research area 5807 | -2/Research | Evolved 2 slots: Utility x2 5834 | -2/Research | Spotted B-90 Cyclops 5989 | -2/Research | Spotted B-90 Cyclops 6057 | -2/Research | Search patrols dispatched 6122 | -2/Research | Lost 6 parts (5n1u) 6149 | -2/Research | Spotted B-90 Cyclops 6164 | -2/Research | Core integrity fell below 50% 6225 | -2/Research | Build established: Wizard-Mutant 6256 | -2/Research | System corruption reached 10% 6276 | -2/Research | Core integrity fell below 20% 6277 | -2/Research | Lost 5 parts (3n1u1w) 6302 | -2/Research | Destroyed by G-73 Enforcer with Heavy Laser Last Messages --------------- 06250_ System corrupted: Heat flow error (+225). 06255_ Triggered Segregator Trap. 06255_ Arcs of energy rise from the floor. 06255_ Centrium Wheel blown off. 06255_ Cmb. Linear Gravjet blown off. 06255_ Imp. System Guard blown off. 06275_ Knocked back. 06276_ Acquired 7 matter. 06284_ K-01 Serf destroyed. 06285_ System corrupted: Substantial component data lost. 06285_ K-01 Serf collects debris. 06287_ R-10 Processor collects Med. Matter Pod. 06288_ K-01 Serf collects debris. 06288_ System Shield destroyed. 06298_ Hacking Suite destroyed. 06301_ K